[Event "*** Titled Tuesday 3|2 Blitz"]
[Site "Chess.com"]
[Date "2015.10.06"]
[Round "1"]
[White "JustKid"]
[Black "ChessTrener"]
[Result "0-1"]
[WhiteElo "2092"]
[BlackElo "2484"]
[TimeControl "180+2"]
[EndTime "11:09:32 PDT"]
[Termination "ChessTrener won by resignation"]

1. d4 {[%clk 0:02:59.1]} 1... Nf6 {[%clk 0:03:00.6]} 2. c4 {[%clk 0:02:59.2]}
2... c5 {[%clk 0:03:01.2]} 3. d5 {[%clk 0:02:59.4]} 3... b5 {[%clk 0:03:02.3]}
4. cxb5 {[%clk 0:02:58.1]} 4... a6 {[%clk 0:03:03.5]} 5. f3 {[%clk 0:02:58.5]}
5... axb5 {[%clk 0:03:03.6]} 6. e4 {[%clk 0:02:56.1]} 6... Qa5+ {[%clk
0:03:04.8]} 7. Bd2 {[%clk 0:02:56.9]} 7... b4 {[%clk 0:03:05.6]} 8. Na3 {[%clk
0:02:58.5]} 8... d6 {[%clk 0:03:05.2]} 9. Nc4 {[%clk 0:03:00]} 9... Qd8 {[%clk
0:03:06.7]} 10. a3 {[%clk 0:03:00.2]} 10... e6 {[%clk 0:03:07.8]} 11. dxe6
{[%clk 0:02:57.4]} 11... Bxe6 {[%clk 0:03:08]} 12. axb4 {[%clk 0:02:55.3]} 12...
Rxa1 {[%clk 0:03:08.7]} 13. Qxa1 {[%clk 0:02:56.9]} 13... d5 {[%clk 0:03:10.3]}
14. exd5 {[%clk 0:02:36.2]} 14... Nxd5 {[%clk 0:03:11]} 15. b5 {[%clk
0:02:28.9]} 15... Nb4 {[%clk 0:03:09.9]} 16. Bxb4 {[%clk 0:02:17]} 16... cxb4
{[%clk 0:03:09.4]} 17. Qd1 {[%clk 0:02:11.2]} 17... Qc7 {[%clk 0:02:58.1]} 18.
b6 {[%clk 0:02:04.3]} 18... Qc6 {[%clk 0:02:55.4]} 19. Qd4 {[%clk 0:01:44.7]}
19... Nd7 {[%clk 0:02:50.8]} 20. Bd3 {[%clk 0:01:35.7]} 20... Bxc4 {[%clk
0:02:21]} 21. Bxc4 {[%clk 0:01:33.3]} 21... Nxb6 {[%clk 0:02:16.6]} 22. b3
{[%clk 0:01:13.3]} 22... Nxc4 {[%clk 0:02:14]} 23. Qxc4 {[%clk 0:01:08]} 23...
Qxc4 {[%clk 0:01:58.6]} 24. bxc4 {[%clk 0:01:09.3]} 24... Bc5 {[%clk 0:02:00.4]}
25. Ne2 {[%clk 0:01:05.3]} 25... Kd7 {[%clk 0:02:01.2]} 26. Kd2 {[%clk
0:01:05.2]} 26... Ra8 {[%clk 0:02:01.4]} 27. Nc1 {[%clk 0:00:55.4]} 27... Bd4
{[%clk 0:01:54.8]} 28. Kc2 {[%clk 0:00:51.9]} 28... Kc6 {[%clk 0:01:49.7]} 29.
Rd1 {[%clk 0:00:51.5]} 29... Bc3 {[%clk 0:01:46.3]} 30. Rd5 {[%clk 0:00:40.5]}
30... g6 {[%clk 0:01:46.8]} 31. Rb5 {[%clk 0:00:37.8]} 31... h5 {[%clk 0:01:45]}
32. h4 {[%clk 0:00:37.9]} 32... Re8 {[%clk 0:01:29.4]} 33. g4 {[%clk 0:00:31.7]}
33... hxg4 {[%clk 0:01:16.7]} 34. fxg4 {[%clk 0:00:33.6]} 34... Re4 {[%clk
0:01:16.2]} 35. Rg5 {[%clk 0:00:25.6]} 35... Rxc4 {[%clk 0:01:14.8]} 36. Kb3
{[%clk 0:00:22]} 36... Re4 {[%clk 0:00:56.3]} 37. Na2 {[%clk 0:00:21.5]} 37...
Bd2 {[%clk 0:00:57.1]} 38. Ra5 {[%clk 0:00:19.9]} 38... Rxg4 {[%clk 0:00:56.7]}
39. Ra6+ {[%clk 0:00:19.7]} 39... Kd7 {[%clk 0:00:55.7]} 40. Ra7+ {[%clk
0:00:20.5]} 40... Ke6 {[%clk 0:00:56.6]} 41. Ra6+ {[%clk 0:00:21.5]} 41... Ke7
{[%clk 0:00:57.9]} 42. Ra7+ {[%clk 0:00:23]} 42... Kf8 {[%clk 0:00:59.2]} 43.
Rd7 {[%clk 0:00:24.6]} 43... Be1 {[%clk 0:00:57.4]} 44. Nc1 {[%clk 0:00:22.6]}
44... Rxh4 {[%clk 0:00:56.7]} 45. Nd3 {[%clk 0:00:23.5]} 45... Bc3 {[%clk
0:00:58.3]} 46. Rd5 {[%clk 0:00:20.5]} 46... Kg7 {[%clk 0:00:57.4]} 47. Nc5
{[%clk 0:00:21.6]} 47... Rd4 {[%clk 0:00:56.4]} 48. Re5 {[%clk 0:00:18.4]} 48...
Rd2 {[%clk 0:00:56.6]} 49. Re7 {[%clk 0:00:18.8]} 49... Rd6 {[%clk 0:00:55.2]}
50. Kc4 {[%clk 0:00:19.6]} 50... g5 {[%clk 0:00:53.9]} 51. Ne4 {[%clk 0:00:19]}
51... Rg6 {[%clk 0:00:52.4]} 52. Nxc3 {[%clk 0:00:17.9]} 52... bxc3 {[%clk
0:00:53.3]} 53. Kxc3 {[%clk 0:00:19.8]} 53... g4 {[%clk 0:00:54.6]} 54. Re2
{[%clk 0:00:21.5]} 54... Kh6 {[%clk 0:00:55.7]} 55. Rg2 {[%clk 0:00:23.4]} 55...
Kg5 {[%clk 0:00:56.9]} 56. Kd3 {[%clk 0:00:25.3]} 56... f5 {[%clk 0:00:58.5]}
57. Ke3 {[%clk 0:00:25.7]} 57... Re6+ {[%clk 0:00:59.9]} 58. Kf2 {[%clk
0:00:26.7]} 58... f4 {[%clk 0:01:01.8]} 59. Rg1 {[%clk 0:00:28]} 59... g3+
{[%clk 0:01:03]} 60. Kf3 {[%clk 0:00:29.3]} 60... Re3+ {[%clk 0:01:03.8]} 61.
Kg2 {[%clk 0:00:30.2]} 61... Kg4 {[%clk 0:01:05.7]} 62. Ra1 {[%clk 0:00:30.9]}
62... f3+ {[%clk 0:01:06.6]} 63. Kg1 {[%clk 0:00:31.7]} 63... Kh3 {[%clk
0:01:07.8]} 64. Rb1 {[%clk 0:00:29.6]} 64... Re1+ {[%clk 0:01:05.6]} 65. Rxe1
{[%clk 0:00:29.9]} 65... f2+ {[%clk 0:01:07]} 0-1

[Event "*** Titled Tuesday 3|2 Blitz"]
[Site "Chess.com"]
[Date "2015.10.06"]
[Round "1"]
[White "chesswooog"]
[Black "AnthonyWirig"]
[Result "0-1"]
[WhiteElo "2182"]
[BlackElo "2539"]
[TimeControl "180+2"]
[EndTime "11:09:34 PDT"]
[Termination "AnthonyWirig won by checkmate"]

1. e4 {[%clk 0:02:48.3]} 1... c5 {[%clk 0:03:00.8]} 2. d4 {[%clk 0:02:48.2]}
2... cxd4 {[%clk 0:03:01.6]} 3. c3 {[%clk 0:02:49.6]} 3... d3 {[%clk 0:02:59.2]}
4. Bxd3 {[%clk 0:02:49.7]} 4... Nc6 {[%clk 0:03:00.9]} 5. c4 {[%clk 0:02:49.8]}
5... d6 {[%clk 0:03:02.2]} 6. Nf3 {[%clk 0:02:50.3]} 6... Nf6 {[%clk 0:03:03.2]}
7. h3 {[%clk 0:02:49.9]} 7... g6 {[%clk 0:03:03.5]} 8. Nc3 {[%clk 0:02:51.1]}
8... Bg7 {[%clk 0:03:05.2]} 9. O-O {[%clk 0:02:51.9]} 9... O-O {[%clk
0:03:06.8]} 10. Be3 {[%clk 0:02:53.5]} 10... a5 {[%clk 0:03:06.1]} 11. Rc1
{[%clk 0:02:53.7]} 11... Nd7 {[%clk 0:03:06.9]} 12. b3 {[%clk 0:02:54.7]} 12...
Nc5 {[%clk 0:03:08]} 13. Bb1 {[%clk 0:02:54.5]} 13... Be6 {[%clk 0:03:04.8]} 14.
Nd5 {[%clk 0:02:53.9]} 14... Bd7 {[%clk 0:02:58.7]} 15. Qd2 {[%clk 0:02:53.4]}
15... Ne6 {[%clk 0:02:29.4]} 16. Bh6 {[%clk 0:02:50.5]} 16... f6 {[%clk
0:02:13.1]} 17. Bxg7 {[%clk 0:02:48.6]} 17... Kxg7 {[%clk 0:02:15]} 18. Rfd1
{[%clk 0:02:47.7]} 18... Ne5 {[%clk 0:02:11.6]} 19. Nd4 {[%clk 0:02:41.7]} 19...
Nxd4 {[%clk 0:02:09.8]} 20. Qxd4 {[%clk 0:02:43.6]} 20... Nc6 {[%clk 0:02:07.6]}
21. Qd2 {[%clk 0:02:33.7]} 21... Be6 {[%clk 0:02:08.2]} 22. Qe3 {[%clk
0:02:25.1]} 22... Qb8 {[%clk 0:01:48]} 23. Nb6 {[%clk 0:02:19.3]} 23... Ra6
{[%clk 0:01:47.8]} 24. c5 {[%clk 0:02:20.3]} 24... dxc5 {[%clk 0:01:36.3]} 25.
Qxc5 {[%clk 0:02:20.7]} 25... Qe5 {[%clk 0:01:33.9]} 26. Nd7 {[%clk 0:02:15.8]}
26... Bxd7 {[%clk 0:01:25.5]} 27. Rxd7 {[%clk 0:02:17.7]} 27... Qxc5 {[%clk
0:01:25.3]} 28. Rxc5 {[%clk 0:02:16.8]} 28... Rb6 {[%clk 0:01:24.2]} 29. f4
{[%clk 0:02:11.3]} 29... a4 {[%clk 0:01:20.5]} 30. Bc2 {[%clk 0:02:11.6]} 30...
a3 {[%clk 0:01:16.7]} 31. Bd3 {[%clk 0:02:09.6]} 31... Nb4 {[%clk 0:00:53.2]}
32. Rxe7+ {[%clk 0:02:09.3]} 32... Rf7 {[%clk 0:00:54.6]} 33. Rxf7+ {[%clk
0:02:09.3]} 33... Kxf7 {[%clk 0:00:56.5]} 34. Rc7+ {[%clk 0:02:08.9]} 34... Ke6
{[%clk 0:00:52.7]} 35. Bb1 {[%clk 0:02:05.4]} 35... g5 {[%clk 0:00:48.7]} 36. g3
{[%clk 0:02:04.5]} 36... gxf4 {[%clk 0:00:49.8]} 37. gxf4 {[%clk 0:02:06.4]}
37... h5 {[%clk 0:00:42.8]} 38. Kf2 {[%clk 0:02:06.9]} 38... Kd6 {[%clk
0:00:42]} 39. Rc1 {[%clk 0:02:02.5]} 39... Ke6 {[%clk 0:00:36.4]} 40. Ke3 {[%clk
0:02:02.5]} 40... Ra6 {[%clk 0:00:33.5]} 41. Rc4 {[%clk 0:01:59]} 41... Rb6
{[%clk 0:00:34.9]} 42. Kd4 {[%clk 0:01:57.4]} 42... Kd6 {[%clk 0:00:35.9]} 43.
Kc3 {[%clk 0:01:56.7]} 43... Nc6 {[%clk 0:00:35.8]} 44. b4 {[%clk 0:01:55.4]}
44... h4 {[%clk 0:00:31.4]} 45. Bc2 {[%clk 0:01:54.4]} 45... Na7 {[%clk
0:00:28.4]} 46. Rd4+ {[%clk 0:01:51.8]} 46... Ke7 {[%clk 0:00:28.5]} 47. Ba4
{[%clk 0:01:50.7]} 47... Ra6 {[%clk 0:00:26.5]} 48. Kb3 {[%clk 0:01:48.4]} 48...
b5 {[%clk 0:00:27.2]} 49. Kxa3 {[%clk 0:01:35.3]} 49... Rxa4+ {[%clk 0:00:27.3]}
50. Kb3 {[%clk 0:01:36.3]} 50... Nc6 {[%clk 0:00:28.9]} 51. Rd5 {[%clk
0:01:31.3]} 51... Rxb4+ {[%clk 0:00:29.7]} 52. Kc3 {[%clk 0:01:32.9]} 52... Rxe4
{[%clk 0:00:29.2]} 53. Rxb5 {[%clk 0:01:32.3]} 53... Rxf4 {[%clk 0:00:30.5]} 54.
Rh5 {[%clk 0:01:28.1]} 54... Kd6 {[%clk 0:00:29.4]} 55. Kb2 {[%clk 0:01:25.6]}
55... Ne5 {[%clk 0:00:29.2]} 56. a3 {[%clk 0:01:24.2]} 56... Kc5 {[%clk
0:00:28.5]} 57. Kb3 {[%clk 0:01:24.2]} 57... Rf3+ {[%clk 0:00:29.6]} 58. Ka4
{[%clk 0:01:25.3]} 58... Rxh3 {[%clk 0:00:30.5]} 59. Rf5 {[%clk 0:01:25.6]}
59... Rf3 {[%clk 0:00:30.9]} 60. Rh5 {[%clk 0:01:25.5]} 60... h3 {[%clk
0:00:32.2]} 61. Rh8 {[%clk 0:01:23.4]} 61... Ng4 {[%clk 0:00:31.3]} 62. Rc8+
{[%clk 0:01:21.8]} 62... Kb6 {[%clk 0:00:32.4]} 63. Rb8+ {[%clk 0:01:20]} 63...
Kc7 {[%clk 0:00:32.8]} 64. Rg8 {[%clk 0:01:21.2]} 64... Rf4+ {[%clk 0:00:32.9]}
65. Kb5 {[%clk 0:01:21.6]} 65... h2 {[%clk 0:00:34.8]} 66. Rg7+ {[%clk
0:01:22.2]} 66... Kd6 {[%clk 0:00:36.3]} 67. Rh7 {[%clk 0:01:24.1]} 67... Rf1
{[%clk 0:00:36.3]} 68. a4 {[%clk 0:01:20.9]} 68... h1=Q {[%clk 0:00:37.5]} 69.
Rxh1 {[%clk 0:01:21.8]} 69... Rxh1 {[%clk 0:00:39.4]} 70. a5 {[%clk 0:01:23.1]}
70... Rb1+ {[%clk 0:00:40.9]} 71. Ka6 {[%clk 0:01:24.1]} 71... f5 {[%clk
0:00:41.5]} 72. Ka7 {[%clk 0:01:25]} 72... f4 {[%clk 0:00:42.2]} 73. a6 {[%clk
0:01:26.7]} 73... Kc7 {[%clk 0:00:42.1]} 74. Ka8 {[%clk 0:01:28.3]} 74... Rh1
{[%clk 0:00:43.3]} 75. Ka7 {[%clk 0:01:28.8]} 75... f3 {[%clk 0:00:43.5]} 76.
Ka8 {[%clk 0:01:29.6]} 76... Ne5 {[%clk 0:00:44.6]} 77. a7 {[%clk 0:01:29.5]}
77... Rh8# {[%clk 0:00:44.2]} 0-1

[Event "*** Titled Tuesday 3|2 Blitz"]
[Site "Chess.com"]
[Date "2015.10.06"]
[Round "1"]
[White "stefanodinn"]
[Black "Boryboy"]
[Result "0-1"]
[WhiteElo "2122"]
[BlackElo "2488"]
[TimeControl "180+2"]
[EndTime "11:10:27 PDT"]
[Termination "Boryboy won by resignation"]

1. e4 {[%clk 0:02:56.7]} 1... e6 {[%clk 0:02:54.3]} 2. d4 {[%clk 0:02:55.5]}
2... d5 {[%clk 0:02:55.4]} 3. Nd2 {[%clk 0:02:54.3]} 3... h6 {[%clk 0:02:55.8]}
4. c3 {[%clk 0:02:52.9]} 4... c5 {[%clk 0:02:53.7]} 5. exd5 {[%clk 0:02:52.9]}
5... Qxd5 {[%clk 0:02:55.6]} 6. Ngf3 {[%clk 0:02:52.4]} 6... Qd8 {[%clk
0:02:54.8]} 7. Bc4 {[%clk 0:02:40.7]} 7... Nf6 {[%clk 0:02:54.9]} 8. O-O {[%clk
0:02:41.2]} 8... Nc6 {[%clk 0:02:52.9]} 9. dxc5 {[%clk 0:02:40.1]} 9... Bxc5
{[%clk 0:02:53.7]} 10. Qe2 {[%clk 0:02:37.7]} 10... a6 {[%clk 0:02:52.6]} 11.
Ne4 {[%clk 0:02:36.9]} 11... Be7 {[%clk 0:02:51.1]} 12. Bf4 {[%clk 0:02:33.3]}
12... Nxe4 {[%clk 0:02:33.4]} 13. Qxe4 {[%clk 0:02:33.6]} 13... Qa5 {[%clk
0:02:34.3]} 14. Ne5 {[%clk 0:02:24.7]} 14... Nxe5 {[%clk 0:02:27.6]} 15. Bxe5
{[%clk 0:02:25.5]} 15... O-O {[%clk 0:02:21.9]} 16. b4 {[%clk 0:02:22.1]} 16...
Qb6 {[%clk 0:02:06.8]} 17. Qg4 {[%clk 0:02:07.4]} 17... f6 {[%clk 0:02:03.2]}
18. Bd4 {[%clk 0:02:06.9]} 18... Qc6 {[%clk 0:02:01.5]} 19. Bb3 {[%clk 0:01:56]}
19... Kh8 {[%clk 0:01:46.2]} 20. Qg6 {[%clk 0:01:43]} 20... Qe8 {[%clk 0:01:35]}
21. Qxe8 {[%clk 0:01:43.1]} 21... Rxe8 {[%clk 0:01:36.9]} 22. f4 {[%clk
0:01:43.3]} 22... Bd7 {[%clk 0:01:35.4]} 23. Rfe1 {[%clk 0:01:43.7]} 23... Bf8
{[%clk 0:01:36.3]} 24. Rad1 {[%clk 0:01:43.1]} 24... Bc8 {[%clk 0:01:13.1]} 25.
Bb6 {[%clk 0:01:31.6]} 25... e5 {[%clk 0:00:54.1]} 26. fxe5 {[%clk 0:01:23.5]}
26... fxe5 {[%clk 0:00:56]} 27. Bf7 {[%clk 0:01:09]} 27... Re7 {[%clk
0:00:53.8]} 28. Rf1 {[%clk 0:01:05.9]} 28... Bg4 {[%clk 0:00:52.4]} 29. Rde1
{[%clk 0:01:02.2]} 29... Be6 {[%clk 0:00:24.5]} 30. Bxe6 {[%clk 0:01:00.4]}
30... Rxe6 {[%clk 0:00:25.6]} 31. Bd4 {[%clk 0:00:56.7]} 31... Rae8 {[%clk
0:00:26.5]} 32. Rxe5 {[%clk 0:00:48.4]} 32... Rxe5 {[%clk 0:00:24.6]} 33. Bxe5
{[%clk 0:00:49.1]} 33... Kg8 {[%clk 0:00:26.2]} 34. Re1 {[%clk 0:00:43.5]} 34...
Rd8 {[%clk 0:00:22.5]} 35. Re2 {[%clk 0:00:41.7]} 35... Rd1+ {[%clk 0:00:21.2]}
36. Kf2 {[%clk 0:00:42.5]} 36... b5 {[%clk 0:00:23]} 37. Ke3 {[%clk 0:00:41.3]}
37... Be7 {[%clk 0:00:22.4]} 38. Bd4 {[%clk 0:00:38.8]} 38... Bg5+ {[%clk
0:00:21.4]} 39. Ke4 {[%clk 0:00:39.6]} 39... Kf8 {[%clk 0:00:22]} 40. Rf2+
{[%clk 0:00:37.3]} 40... Kg8 {[%clk 0:00:23.6]} 41. Kd5 {[%clk 0:00:32.7]} 41...
Be7 {[%clk 0:00:21.4]} 42. Re2 {[%clk 0:00:32.4]} 42... Bf8 {[%clk 0:00:22.1]}
43. h4 {[%clk 0:00:21.6]} 43... Kf7 {[%clk 0:00:21.6]} 44. Rf2+ {[%clk
0:00:21.5]} 44... Kg8 {[%clk 0:00:23.1]} 45. h5 {[%clk 0:00:22.1]} 45... Be7
{[%clk 0:00:21.9]} 46. Re2 {[%clk 0:00:21.9]} 46... Bf8 {[%clk 0:00:23.4]} 47.
g4 {[%clk 0:00:21.3]} 47... Rd3 {[%clk 0:00:24.1]} 48. Re6 {[%clk 0:00:19.3]}
48... Rg3 {[%clk 0:00:24.3]} 49. Rg6 {[%clk 0:00:19.9]} 49... Kf7 {[%clk
0:00:25.3]} 50. a3 {[%clk 0:00:15.5]} 50... Rg2 {[%clk 0:00:25.2]} 51. Kc6
{[%clk 0:00:14.7]} 51... Ra2 {[%clk 0:00:26.4]} 52. Kb7 {[%clk 0:00:14.6]} 52...
Rxa3 {[%clk 0:00:26.1]} 53. Rxa6 {[%clk 0:00:15.1]} 53... Ra2 {[%clk 0:00:27.6]}
54. Rg6 {[%clk 0:00:15.6]} 54... Rd2 {[%clk 0:00:23.7]} 55. Kc6 {[%clk
0:00:15.4]} 55... Bxb4 {[%clk 0:00:17.3]} 56. Rxg7+ {[%clk 0:00:16.2]} 56... Kf8
{[%clk 0:00:18.6]} 57. cxb4 {[%clk 0:00:15.7]} 57... Rxd4 {[%clk 0:00:19.9]} 58.
Rg6 {[%clk 0:00:16.4]} 58... Rxb4 {[%clk 0:00:21.1]} 59. Kc5 {[%clk 0:00:16.8]}
59... Rb1 {[%clk 0:00:21.3]} 60. Rxh6 {[%clk 0:00:17.4]} 60... b4 {[%clk
0:00:22.9]} 61. Rb6 {[%clk 0:00:18.1]} 61... b3 {[%clk 0:00:24.4]} 62. Kc4
{[%clk 0:00:15.6]} 62... Rg1 {[%clk 0:00:22.1]} 63. Kxb3 {[%clk 0:00:11.2]}
63... Rb1+ {[%clk 0:00:23.1]} 64. Kc4 {[%clk 0:00:11.8]} 64... Rxb6 {[%clk
0:00:25]} 0-1

[Event "*** Titled Tuesday 3|2 Blitz"]
[Site "Chess.com"]
[Date "2015.10.06"]
[Round "1"]
[White "zmaj23"]
[Black "Badouuu"]
[Result "1/2-1/2"]
[WhiteElo "2310"]
[BlackElo "1947"]
[TimeControl "180+2"]
[EndTime "11:11:02 PDT"]
[Termination "Game drawn - insufficient material"]

1. e4 {[%clk 0:03:00.7]} 1... c5 {[%clk 0:02:58.9]} 2. Nf3 {[%clk 0:03:01.2]}
2... Nc6 {[%clk 0:03:00.3]} 3. d4 {[%clk 0:03:01.9]} 3... cxd4 {[%clk
0:03:02.2]} 4. Nxd4 {[%clk 0:03:02.7]} 4... e5 {[%clk 0:03:03.8]} 5. Nb5 {[%clk
0:03:03.1]} 5... d6 {[%clk 0:03:05]} 6. N1c3 {[%clk 0:03:02.7]} 6... a6 {[%clk
0:03:06.4]} 7. Na3 {[%clk 0:03:03.6]} 7... b5 {[%clk 0:03:08.3]} 8. Nd5 {[%clk
0:03:04.6]} 8... Nge7 {[%clk 0:03:10]} 9. c4 {[%clk 0:03:05.7]} 9... Nd4 {[%clk
0:03:06.1]} 10. Be3 {[%clk 0:02:59.6]} 10... Nxd5 {[%clk 0:02:57.9]} 11. cxd5
{[%clk 0:02:55.2]} 11... g6 {[%clk 0:02:56.7]} 12. Bxd4 {[%clk 0:02:55.6]} 12...
exd4 {[%clk 0:02:53.5]} 13. Qxd4 {[%clk 0:02:57.5]} 13... Qa5+ {[%clk
0:02:53.3]} 14. Kd1 {[%clk 0:02:36.4]} 14... Rg8 {[%clk 0:02:51.1]} 15. Qc3
{[%clk 0:02:14.7]} 15... Qxc3 {[%clk 0:02:44.7]} 16. bxc3 {[%clk 0:02:16.6]}
16... Bg7 {[%clk 0:02:45.3]} 17. Kc2 {[%clk 0:02:15.5]} 17... f5 {[%clk
0:02:45.9]} 18. f3 {[%clk 0:02:16]} 18... Bd7 {[%clk 0:02:38.4]} 19. Kb3 {[%clk
0:02:00.1]} 19... Rc8 {[%clk 0:02:37]} 20. Rc1 {[%clk 0:02:01.7]} 20... Rf8
{[%clk 0:02:29.2]} 21. Bd3 {[%clk 0:01:59.3]} 21... fxe4 {[%clk 0:02:29.9]} 22.
Bxe4 {[%clk 0:01:59.9]} 22... a5 {[%clk 0:02:28.5]} 23. Rhe1 {[%clk 0:01:52.2]}
23... Kd8 {[%clk 0:02:22.6]} 24. Bd3 {[%clk 0:01:41.9]} 24... a4+ {[%clk
0:02:14.1]} 25. Kb4 {[%clk 0:01:41.4]} 25... Rf4+ {[%clk 0:02:06.6]} 26. Re4
{[%clk 0:01:41.8]} 26... Rf5 {[%clk 0:01:59.7]} 27. Bxb5 {[%clk 0:01:07.1]}
27... Rxd5 {[%clk 0:01:46.4]} 28. c4 {[%clk 0:00:50.6]} 28... Rd2 {[%clk
0:01:45.3]} 29. Rce1 {[%clk 0:00:41.9]} 29... Rb2+ {[%clk 0:01:36]} 30. Ka5
{[%clk 0:00:35.5]} 30... Kc7 {[%clk 0:01:22.3]} 31. R1e3 {[%clk 0:00:06.1]}
31... Kb7 {[%clk 0:00:38.4]} 32. Ba6+ {[%clk 0:00:06.8]} 32... Kc7 {[%clk
0:00:36.9]} 33. Bxc8 {[%clk 0:00:07.9]} 33... Kxc8 {[%clk 0:00:33.1]} 34. Nb5
{[%clk 0:00:05.9]} 34... Bf6 {[%clk 0:00:19.2]} 35. Nxd6+ {[%clk 0:00:05.1]}
35... Kc7 {[%clk 0:00:20]} 36. Nb5+ {[%clk 0:00:06.5]} 36... Kc8 {[%clk
0:00:19.3]} 37. Re8+ {[%clk 0:00:07]} 37... Bxe8 {[%clk 0:00:19.8]} 38. Rxe8+
{[%clk 0:00:08.9]} 38... Kd7 {[%clk 0:00:21.7]} 39. Ra8 {[%clk 0:00:10.5]} 39...
Bd8+ {[%clk 0:00:21.9]} 40. Kxa4 {[%clk 0:00:09.7]} 40... Rxa2+ {[%clk
0:00:23.1]} 41. Na3 {[%clk 0:00:11.4]} 41... Be7 {[%clk 0:00:24.3]} 42. Kb3
{[%clk 0:00:12.1]} 42... Rxg2 {[%clk 0:00:25.8]} 43. Ra7+ {[%clk 0:00:12.4]}
43... Ke6 {[%clk 0:00:27.2]} 44. Ra6+ {[%clk 0:00:11.8]} 44... Kf5 {[%clk
0:00:27.3]} 45. Nb5 {[%clk 0:00:11.1]} 45... Rxh2 {[%clk 0:00:26.8]} 46. Ra7
{[%clk 0:00:12.4]} 46... Bc5 {[%clk 0:00:27.5]} 47. Rc7 {[%clk 0:00:12.9]} 47...
Be3 {[%clk 0:00:27.6]} 48. c5 {[%clk 0:00:12.7]} 48... Rh1 {[%clk 0:00:23.4]}
49. c6 {[%clk 0:00:13.1]} 49... h5 {[%clk 0:00:23.8]} 50. Rc8 {[%clk 0:00:09.2]}
50... Rc1 {[%clk 0:00:21.9]} 51. c7 {[%clk 0:00:09.4]} 51... Bf4 {[%clk
0:00:23.1]} 52. Rf8+ {[%clk 0:00:10]} 52... Kg5 {[%clk 0:00:23.9]} 53. c8=Q
{[%clk 0:00:11.9]} 53... Rxc8 {[%clk 0:00:23.4]} 54. Rxc8 {[%clk 0:00:13.8]}
54... h4 {[%clk 0:00:24.4]} 55. Nd4 {[%clk 0:00:13.4]} 55... Be5 {[%clk
0:00:24.9]} 56. Ne6+ {[%clk 0:00:13.2]} 56... Kf6 {[%clk 0:00:26]} 57. Rc6
{[%clk 0:00:13.5]} 57... Kf5 {[%clk 0:00:25.7]} 58. f4 {[%clk 0:00:11.8]} 58...
Bxf4 {[%clk 0:00:25.8]} 59. Nd4+ {[%clk 0:00:11.7]} 59... Ke4 {[%clk 0:00:26.4]}
60. Ne2 {[%clk 0:00:10.9]} 60... g5 {[%clk 0:00:22.9]} 61. Kc2 {[%clk
0:00:10.4]} 61... Be3 {[%clk 0:00:21.2]} 62. Rc4+ {[%clk 0:00:09.7]} 62... Kf3
{[%clk 0:00:22.5]} 63. Kd1 {[%clk 0:00:11]} 63... h3 {[%clk 0:00:23.8]} 64. Rc8
{[%clk 0:00:06.1]} 64... h2 {[%clk 0:00:23.7]} 65. Rh8 {[%clk 0:00:06.9]} 65...
Kg2 {[%clk 0:00:25]} 66. Nc3 {[%clk 0:00:04.8]} 66... h1=Q+ {[%clk 0:00:24.4]}
67. Rxh1 {[%clk 0:00:05]} 67... Kxh1 {[%clk 0:00:26.3]} 68. Ke2 {[%clk
0:00:06.7]} 68... Bf4 {[%clk 0:00:25.7]} 69. Kf3 {[%clk 0:00:08]} 69... Kg1
{[%clk 0:00:26.4]} 70. Ne4 {[%clk 0:00:08.9]} 70... Kf1 {[%clk 0:00:27.3]} 71.
Nxg5 {[%clk 0:00:09.5]} 71... Bxg5 {[%clk 0:00:29.2]} 1/2-1/2